bitfinex-derivatives/quotes_SOLF0:USTF0_20250310
["timestamp","ask_amount","ask_price","bid_price","bid_amount"]
[1741610978639,25.57363442,128.6,128.51,19.60779614]
[1741610978839,25.57363442,128.6,128.51,19.55113442]
[1741610979551,25.57363442,128.6,128.55,7.778]
[1741610979845,0.05601688,128.59,128.56,0.05272501]
[1741610980643,7.7769,128.57,128.56,0.05272501]
[1741610982151,7.7766,128.58,128.56,0.05272501]
[1741610982451,0.05601688,128.59,128.56,0.05272501]
[1741610983146,0.05601688,128.59,128.57,7.7768]
[1741610983645,0.05601688,128.59,128.56,0.05272501]
[1741610983850,0.05601688,128.59,128.58,7.7763]
[1741610985747,19.55113442,128.67,128.57,19.55113442]
[1741610986256,7.7729,128.64,128.61,7.7741]
[1741610986450,19.55113442,128.67,128.57,19.55113442]
[1741610986750,19.55113442,128.67,128.62,7.7734]
[1741610986951,0.05117524,128.63,128.61,0.05089855]
[1741610987142,7.7729,128.64,128.61,0.05089855]
[1741610987346,0.05380505,128.63,128.61,7.82499855]
[1741610987756,0.05380505,128.63,128.61,0.05089855]
[1741610988251,7.82710505,128.63,128.61,0.05089855]
[1741610988753,7.7739,128.62,128.61,0.05089855]
[1741610988954,0.05380505,128.63,128.61,0.05089855]
[1741610991054,7.7739,128.62,128.61,0.05089855]
[1741610993973,7.7767,128.58,128.55,2.0758]
[1741610994174,19.55113442,128.62,128.55,2.0758]
[1741610994875,7.7772,128.57,128.55,2.0758]
[1741610995175,0.05058002,128.57,128.55,2.13452093]
[1741610995767,0.05058002,128.57,128.56,7.7775]
[1741610996469,19.55113442,128.64,128.55,2.13452093]
[1741610996675,19.55113442,128.64,128.56,19.55113442]
[1741610997176,7.7741,128.62,128.59,7.7754]
[1741610997371,19.55113442,128.64,128.56,19.55113442]
[1741610997571,0.05960596,128.62,128.59,0.05673285]
[1741610997778,19.55113442,128.66,128.56,19.55113442]
[1741610997779,7.7733,128.63,128.6,7.7747]
[1741610997977,0.05870286,128.62,128.59,0.0582754]
[1741610998479,0.05870286,128.62,128.61,7.7744]
[1741610998977,0.05870286,128.62,128.59,0.0582754]
[1741610998978,0.05870286,128.62,128.6,7.7748]
[1741610999277,0.05870286,128.62,128.59,0.0582754]
[1741610999572,0.05870286,128.62,128.61,7.7745]
[1741611000675,0.05870286,128.62,128.59,2.1979754]
[1741611000876,7.83290286,128.62,128.59,0.0582754]
[1741611001074,0.05870286,128.62,128.59,0.0582754]
[1741611002077,7.7751,128.6,128.59,0.0582754]
[1741611002874,0.05870286,128.62,128.59,0.0582754]
[1741611003080,19.60983728,128.62,128.59,0.0582754]
[1741611003383,7.7751,128.6,128.59,0.0582754]
[1741611003774,7.7748,128.61,128.59,0.0582754]
[1741611004282,0.05870286,128.62,128.59,0.0582754]
[1741611004779,0.05870286,128.62,128.61,7.7745]
[1741611006176,0.05870286,128.62,128.6,7.7748]
[1741611006478,0.05870286,128.62,128.59,0.0582754]
[1741611006877,0.05870286,128.62,128.6,7.7751]
[1741611007186,0.05870286,128.62,128.59,0.0582754]
[1741611008184,25.65803442,128.69,128.6,19.55113442]
[1741611008382,25.65803442,128.69,128.6,21.51773442]
[1741611008978,7.7718,128.66,128.63,7.7727]
[1741611009175,7.82783357,128.66,128.63,7.83135968]
[1741611009376,7.82783357,128.66,128.63,0.05865968]
[1741611009782,0.05603357,128.66,128.63,0.05865968]
[1741611010287,7.82773357,128.66,128.63,7.83145968]
[1741611011087,0.05603357,128.66,128.65,7.772]
[1741611011383,15.535,128.73,128.63,0.05865968]
[1741611011384,19.55113442,128.73,128.64,19.55113442]
[1741611011586,19.55113442,128.73,128.64,23.54293442]
[1741611012282,6.0799,128.75,128.69,7.7692]
[1741611012477,25.63103442,128.75,128.69,7.7692]
[1741611012682,0.05763042,128.73,128.71,0.05671005]
[1741611013392,7.7678,128.72,128.71,0.05671005]
[1741611013581,0.05763042,128.73,128.71,0.05671005]
[1741611014187,7.7678,128.72,128.71,0.05671005]
[1741611014783,0.05763042,128.73,128.71,0.05671005]
[1741611015389,7.7678,128.72,128.71,0.05671005]
[1741611015894,0.05763042,128.73,128.71,0.05671005]
[1741611016085,7.7656,128.76,128.71,0.05671005]
[1741611016392,7.7656,128.76,128.72,7.7674]
[1741611016586,7.765,128.77,128.7,19.55113442]
[1741611016892,25.66563442,128.81,128.73,7.767]
[1741611017086,25.66563442,128.81,128.72,19.55113442]
[1741611017390,0.05778695,128.78,128.75,0.05033936]
[1741611018095,0.05778695,128.78,128.75,7.81593936]
[1741611018402,0.05778695,128.78,128.75,0.05033936]
[1741611019891,7.7654,128.76,128.75,0.05033936]
[1741611020083,0.05778695,128.78,128.75,0.05033936]
[1741611020584,7.7652,128.77,128.75,0.05033936]
[1741611020781,0.05778695,128.78,128.75,0.05033936]
[1741611020991,7.7654,128.76,128.75,0.05033936]
[1741611022793,19.55113442,128.77,128.69,4.0042]
[1741611022998,19.55113442,128.75,128.66,2.0217]
[1741611023294,4.1743,128.74,128.66,9.7927]
[1741611023696,19.55113442,128.73,128.66,2.0217]
[1741611023890,0.05946286,128.71,128.69,0.05801069]
[1741611024091,7.769,128.7,128.69,0.05801069]
[1741611025794,7.82816286,128.71,128.69,0.05801069]
[1741611026192,0.05946286,128.71,128.69,0.05801069]
[1741611026497,0.05946286,128.71,128.7,7.769]
[1741611026698,275.85113442,128.79,128.7,19.55113442]
[1741611026893,7.7658,128.76,128.7,23.78553442]
[1741611027292,19.55113442,128.79,128.7,23.78553442]
[1741611027493,19.55113442,128.77,128.68,19.55113442]
[1741611027800,19.55113442,128.77,128.69,7.7693]
[1741611027996,19.55113442,128.77,128.71,0.05928588]
[1741611027997,0.05594863,128.74,128.71,0.05928588]
[1741611028192,0.05594863,128.74,128.71,7.82758588]
[1741611028395,0.05594863,128.74,128.71,0.05928588]
[1741611028790,0.05594863,128.74,128.72,7.7678]
[1741611029001,0.05594863,128.74,128.71,0.05928588]
[1741611029499,0.05594863,128.74,128.73,7.7672]
[1741611029800,0.01959569,128.74,128.73,7.7672]
[1741611030002,4.1473,128.8,128.71,31.33446354]
[1741611030301,1.9626,128.83,128.74,31.27517766]
[1741611030496,1.9626,128.83,128.72,31.27517766]
[1741611031098,0.05646672,128.79,128.76,0.05204941]
[1741611034497,7.82016672,128.79,128.76,7.81714941]
[1741611034698,0.05646672,128.79,128.76,0.05204941]
[1741611035100,7.7648,128.77,128.76,0.05204941]
[1741611035695,0.05646672,128.79,128.76,0.05204941]
[1741611036900,0.05646672,128.79,128.78,7.7642]
[1741611037100,6.3586,128.89,128.77,31.27517766]
[1741611037296,6.3586,128.89,128.78,2.0718]
[1741611037899,6.3586,128.89,128.79,62.0]
[1741611038099,7.761,128.84,128.8,7.7626]
[1741611038300,0.0570216,128.85,128.83,0.04990207]
[1741611038594,7.7606,128.84,128.83,0.04990207]
[1741611040704,0.0570216,128.85,128.83,0.04990207]
[1741611041106,7.8173216,128.85,128.83,0.04990207]
[1741611041504,0.0570216,128.85,128.83,0.04990207]
[1741611041814,0.0570216,128.85,128.83,7.81070207]
[1741611042209,7.7606,128.84,128.83,0.04990207]
[1741611045201,0.0570216,128.85,128.83,0.04990207]
[1741611046106,7.7606,128.84,128.83,0.04990207]
[1741611046705,0.0570216,128.85,128.83,0.04990207]
[1741611047410,448.12,128.97,128.86,7.7588]
[1741611047606,6.0866,128.95,128.86,7.7588]
[1741611048005,7.7591,128.87,128.82,1.9883]
[1741611048202,6.0866,128.95,128.82,1.9883]
[1741611048615,0.04911101,128.89,128.82,1.9883]
[1741611048821,0.04911101,128.89,128.87,0.05183789]
[1741611049022,7.7588,128.87,128.84,7.7606]
[1741611049225,0.04911101,128.89,128.87,0.0535195]
[1741611049516,6.0866,128.95,128.87,0.05823455]
[1741611049720,7.8130365,128.89,128.87,0.05823455]
[1741611049919,7.758,128.89,128.87,0.05823455]
[1741611050115,0.05294098,128.89,128.87,0.05823455]
[1741611051322,0.05294098,128.89,128.87,7.81653455]
[1741611051518,0.05294098,128.89,128.87,0.05823455]
[1741611051722,0.05294098,128.89,128.88,7.7582]
[1741611052018,0.05294098,128.89,128.88,27.25628005]
[1741611052223,6.0866,128.95,128.88,19.49808005]
[1741611052423,6.0866,128.95,128.89,7.7574]
[1741611052623,6.0866,128.95,128.86,19.49808005]
[1741611052818,7.7562,128.92,128.88,7.7577]
[1741611053422,0.05557764,128.91,128.89,0.05016488]
[1741611054925,0.05557764,128.91,128.9,7.757]
[1741611055226,0.05557764,128.91,128.89,0.05016488]
[1741611055526,7.81247764,128.91,128.89,0.05016488]
[1741611056325,7.757,128.9,128.89,0.05016488]
[1741611056520,0.05557764,128.91,128.89,0.05016488]
[1741611056922,0.05557764,128.91,128.89,7.80766488]
[1741611057121,0.05557764,128.91,128.89,0.05016488]
[1741611058929,0.05557764,128.91,128.9,7.757]
[1741611059128,0.05557764,128.91,128.89,0.05016488]
[1741611059630,7.81237764,128.91,128.89,0.05016488]
[1741611060528,0.05557764,128.91,128.89,0.05016488]
[1741611061124,0.05557764,128.91,128.9,7.757]
[1741611061527,4.2202,128.99,128.9,3.88]
[1741611061830,23.71828005,128.99,128.9,21.57568005]
[1741611062027,19.49808005,128.97,128.88,19.49808005]
[1741611062234,7.756,128.92,128.88,19.49808005]
[1741611062434,23.71828005,128.99,128.88,19.49808005]
[1741611062628,0.05827325,128.91,128.9,27.25508005]
[1741611062828,23.71828005,128.99,128.9,19.49808005]
[1741611063030,0.05462183,128.92,128.89,0.0505819]
[1741611063224,1.97,128.95,128.87,255.96]
[1741611063533,0.05870733,128.92,128.89,0.05618049]
[1741611063732,7.7567,128.91,128.89,0.05618049]
[1741611063932,0.05870733,128.92,128.89,0.05618049]
[1741611064328,0.05870733,128.92,128.9,7.7568]
[1741611064527,0.05870733,128.92,128.9,19.49808005]
[1741611064927,0.05870733,128.92,128.89,7.81348049]
[1741611065429,0.05870733,128.92,128.89,0.05618049]
[1741611066433,7.757,128.9,128.89,0.05618049]
[1741611066935,0.05870733,128.92,128.89,0.05618049]
[1741611067637,7.757,128.9,128.89,0.05618049]
[1741611069038,7.7566,128.91,128.89,0.05618049]
[1741611069638,0.05870733,128.92,128.89,0.05618049]
[1741611069833,0.05870733,128.92,128.91,7.7564]
[1741611070539,1.97,128.98,128.93,7.7551]
[1741611070734,1.97,128.98,128.9,23.77708005]
[1741611070942,19.49808005,128.97,128.89,255.92]
[1741611071327,7.757,128.91,128.89,255.92]
[1741611071638,0.05430238,128.94,128.92,0.05674391]
[1741611071837,7.757,128.9,128.89,255.92]
[1741611072042,0.05560153,128.94,128.86,19.49808005]
[1741611072336,7.81059886,128.91,128.88,19.55363961]
[1741611072538,19.49808005,128.97,128.88,19.49808005]
[1741611073036,0.05166956,128.94,128.91,0.05767331]
[1741611073540,7.7558,128.92,128.91,0.05767331]
[1741611073727,0.05166956,128.94,128.91,0.05767331]
[1741611073926,0.05166956,128.94,128.92,19.49808005]
[1741611074337,0.05166956,128.94,128.93,7.7552]
[1741611075743,19.49808005,129.01,128.92,19.49808005]
[1741611075744,7.7518,128.99,128.96,7.7533]
[1741611076041,6.195,129.02,128.96,7.7533]
[1741611076242,7.7512,129.0,128.97,7.7528]
[1741611076438,6.195,129.02,128.97,7.7528]
[1741611076638,6.195,129.02,128.94,19.49808005]
[1741611076840,6.195,129.02,128.98,0.05390072]
[1741611077341,7.7505,129.01,128.98,0.05390072]
[1741611077544,6.195,129.02,128.98,0.05390072]
[1741611077750,6.195,129.02,128.92,23.61778005]
[1741611077751,19.49808005,129.01,128.92,23.61778005]
[1741611078042,19.49808005,128.99,128.92,7.7554]
[1741611078443,7.7526,128.98,128.92,19.49808005]
[1741611078644,6.195,129.02,128.92,19.49808005]
[1741611078944,0.05783269,128.98,128.96,0.05707766]
[1741611079535,7.7528,128.97,128.96,0.05707766]
[1741611080240,0.05783269,128.98,128.96,0.05707766]
[1741611081037,0.05783269,128.98,128.96,7.81037766]
[1741611081237,0.05783269,128.98,128.96,0.05707766]
[1741611082237,7.7528,128.97,128.96,0.05707766]
[1741611083333,7.7558,128.92,128.91,255.88]
[1741611083540,21.48358005,128.97,128.88,42.08149204]
[1741611083740,2.0727,128.96,128.88,18.54561199]
[1741611084041,7.7567,128.91,128.88,26.30351199]
[1741611084248,7.7567,128.91,128.86,19.49808005]
[1741611084449,7.81160579,128.91,128.88,0.0570919]
[1741611084745,0.05490579,128.91,128.88,0.0570919]
[1741611084945,0.05490579,128.91,128.88,19.55517195]
[1741611085141,0.05490579,128.91,128.9,7.757]
[1741611086346,0.05490579,128.91,128.9,27.25508005]
[1741611087457,0.05490579,128.91,128.88,81.55517195]
[1741611088055,0.05490579,128.91,128.9,7.757]
[1741611088242,0.05490579,128.91,128.88,81.55517195]
[1741611088552,0.05490579,128.91,128.9,7.757]
[1741611088754,0.05490579,128.91,128.9,27.25508005]
[1741611091357,0.05490579,128.91,128.88,62.0570919]
[1741611091656,0.05490579,128.91,128.88,0.0570919]
[1741611092042,7.81160579,128.91,128.88,7.8149919]
[1741611092247,0.05490579,128.91,128.88,0.0570919]
[1741611092652,7.7576,128.89,128.88,0.0570919]
[1741611095158,13.8448,128.9,128.88,0.0570919]
[1741611095344,6.0876,128.9,128.88,0.0570919]
[1741611095961,7.7576,128.89,128.88,0.0570919]
[1741611096759,6.0876,128.9,128.88,0.0570919]
[1741611097555,7.7576,128.89,128.88,0.0570919]
[1741611097757,25.58568005,128.9,128.83,62.0]
[1741611097959,25.58568005,128.9,128.8,42.5436579]
[1741611098160,7.7599,128.86,128.83,7.7609]
[1741611098360,25.58568005,128.9,128.83,7.7609]
[1741611098860,192.0,128.98,128.8,42.5436579]
[1741611098861,0.05286651,128.88,128.85,0.05819232]
[1741611099060,4.0435,128.97,128.86,19.49808005]
[1741611099366,0.05460602,128.88,128.87,7.7588]
[1741611099559,7.7557,128.93,128.9,0.05188889]
[1741611099759,7.7558,128.92,128.88,7.7576]
[1741611099963,0.04983576,128.93,128.9,0.05266708]
[1741611100158,19.49808005,128.96,128.9,0.05266708]
[1741611100465,0.05499519,128.93,128.91,7.7564]
[1741611100760,7.7562,128.92,128.86,19.49808005]
[1741611100965,0.05499519,128.93,128.91,0.05779686]
[1741611101165,0.04904517,128.9,128.88,0.0529211]
[1741611101370,7.7549,128.94,128.86,19.49808005]
[1741611101558,0.05064348,128.9,128.88,0.05054267]
[1741611101864,19.49808005,128.96,128.86,19.49808005]
[1741611102168,0.05834216,128.9,128.88,7.81632656]
[1741611102467,7.7572,128.9,128.87,7.7585]
[1741611102660,7.80806845,128.9,128.88,0.05384621]
[1741611102961,7.7576,128.89,128.88,0.05384621]
[1741611103359,0.05086845,128.9,128.88,0.05384621]
[1741611103867,7.80816845,128.9,128.88,0.05384621]
[1741611104068,0.05086845,128.9,128.88,0.05384621]
[1741611104269,0.05086845,128.9,128.89,7.7576]
[1741611105766,6.845e-05,128.9,128.89,7.7576]
[1741611105955,4.0435,128.97,128.94,7.7542]
[1741611106556,11.7966,128.97,128.94,7.7542]
[1741611107167,11.84949984,128.97,128.94,7.80910657]
[1741611108368,4.09639984,128.97,128.94,0.05490657]
[1741611108568,4.09639984,128.97,128.95,7.7538]
[1741611108961,11.84969984,128.97,128.94,7.80920657]
[1741611109463,0.05289984,128.97,128.94,0.05490657]
[1741611110169,0.05289984,128.97,128.96,7.7534]
[1741611113469,9.984e-05,128.97,128.96,7.7534]
[1741611113671,2.0448,129.04,129.0,7.7506]
[1741611114065,7.7494,129.03,129.0,7.7506]
[1741611114268,23.44638005,129.08,129.02,7.7497]
[1741611114469,5.9904,129.08,129.0,19.49808005]
[1741611114977,0.04974453,129.06,129.04,0.05299598]
[1741611115172,7.7483,129.05,129.04,0.05299598]
[1741611118483,0.04974453,129.06,129.04,0.05299598]
[1741611118981,7.748,129.05,129.04,0.05299598]
[1741611120478,0.04974453,129.06,128.98,19.49808005]
[1741611120683,19.49808005,129.06,128.98,19.49808005]
[1741611120883,25.48848005,129.08,128.98,19.49808005]
[1741611121182,7.7496,129.03,129.0,7.7507]
[1741611121479,7.7496,129.03,128.98,19.49808005]
[1741611121480,7.7495,129.03,128.98,19.49808005]
[1741611121668,0.05399646,129.03,129.0,0.0531254]
[1741611121878,19.49808005,129.04,129.0,0.0531254]
[1741611122070,7.80822481,129.03,128.96,19.49808005]
[1741611122271,7.80822481,129.03,129.01,0.0550401]
[1741611122475,7.7495,129.03,129.01,0.05150103]
[1741611122783,7.80283117,129.03,129.01,0.05150103]
[1741611122978,7.7498,129.02,129.01,0.05150103]
[1741611124681,0.05333117,129.03,129.01,0.05150103]
[1741611125188,0.05333117,129.03,129.02,7.7498]
[1741611126073,0.00033519,129.03,129.02,27.24788005]
[1741611126277,211.49808005,129.14,129.02,23.37808005]
[1741611126476,7.7453,129.1,129.05,19.49808005]
[1741611126677,6.1675,129.13,129.05,19.49808005]
[1741611126983,19.49808005,129.12,129.03,19.49808005]
[1741611127182,7.7459,129.09,129.03,19.49808005]
[1741611127383,7.79778518,129.09,129.06,7.79644012]
[1741611127588,0.05188518,129.09,129.06,0.04944012]
[1741611128698,0.05188518,129.09,129.06,7.79644012]
[1741611128895,0.05188518,129.09,129.07,19.49808005]
[1741611129093,0.05188518,129.09,129.08,7.7462]
[1741611129501,0.05188518,129.09,129.07,81.49808005]
[1741611129691,0.05188518,129.09,129.07,89.24458005]
[1741611130702,0.05188518,129.09,129.07,62.0]
[1741611130910,0.05188518,129.09,129.06,0.04944012]
[1741611131395,7.7468,129.07,129.06,0.04944012]
[1741611131600,0.05188518,129.09,129.06,0.04944012]
[1741611132599,7.7468,129.07,129.06,0.04944012]
[1741611132803,0.05188518,129.09,129.06,0.04944012]
[1741611133005,7.79778518,129.09,129.06,7.79664012]
[1741611133413,0.05188518,129.09,129.06,0.04944012]
[1741611133705,0.05188518,129.09,129.07,7.7464]
[1741611133910,0.05188518,129.09,129.07,62.0]
[1741611134213,0.05188518,129.09,129.07,69.7466]
[1741611134706,7.7463,129.08,129.06,0.04944012]
[1741611134903,0.05188518,129.09,129.06,0.04944012]
[1741611136007,0.05188518,129.09,129.07,27.24468005]
[1741611136395,0.05188518,129.09,129.07,19.49808005]
[1741611137412,0.05188518,129.09,129.08,7.7462]
[1741611137703,0.05188518,129.09,129.08,69.7462]
[1741611137909,0.05188518,129.09,129.08,7.7462]
[1741611138208,0.05188518,129.09,129.07,27.24448005]
[1741611138398,0.05188518,129.09,129.07,19.49808005]
[1741611138601,0.05188518,129.09,129.08,7.7462]
[1741611139801,0.05188518,129.09,129.07,27.24428005]
[1741611140202,0.05188518,129.09,129.07,19.49808005]
[1741611140405,0.05188518,129.09,129.08,7.7462]
[1741611140811,10.65778841,129.29,129.08,529.03808005]
[1741611141112,2.1085,129.26,129.21,19.49808005]
[1741611141414,10.65778841,129.29,129.28,7.7342]
[1741611141614,85.2623073,129.29,129.28,7.7342]
[1741611141814,85.2623073,129.29,129.24,19.49808005]
[1741611142109,85.2623073,129.29,129.27,0.05811325]
[1741611142501,85.2623073,129.29,129.28,19.49808005]
[1741611142706,128.240751,129.3,129.28,19.49808005]
[1741611143106,128.240751,129.3,129.27,0.05811325]
[1741611143514,128.240751,129.3,129.28,19.49808005]
[1741611143714,128.240751,129.3,129.27,0.05811325]
[1741611144407,128.240751,129.3,129.27,62.05811325]
[1741611144610,128.240751,129.3,129.27,0.05811325]
[1741611145719,1.938,129.34,129.27,0.05811325]
[1741611145918,7.7322,129.32,129.27,0.05811325]
[1741611146319,1.938,129.34,129.27,0.05811325]
[1741611147719,1.938,129.34,129.28,62.0]
[1741611148212,1.938,129.34,129.3,0.058792]
[1741611148413,256.88581174,129.43,129.3,0.058792]
[1741611148614,6.1602,129.41,129.32,31.00653699]
[1741611148918,6.1602,129.41,129.35,0.05811966]
[1741611150026,7.7283,129.38,129.35,0.05811966]
[1741611150319,6.1602,129.41,129.35,0.05811966]
[1741611150522,7.7272,129.4,129.35,0.05811966]
[1741611150724,6.1602,129.41,129.35,0.05811966]
[1741611151222,7.728,129.39,129.35,0.05811966]
[1741611151521,6.1602,129.41,129.35,0.05811966]
[1741611151724,7.727,129.4,129.36,62.0]
[1741611151918,6.1602,129.41,129.36,62.0]
[1741611152117,6.1602,129.41,129.35,0.05811966]
[1741611152415,7.728,129.39,129.35,0.05811966]
[1741611152722,6.1602,129.41,129.35,0.05811966]
[1741611152921,7.7286,129.38,129.35,0.05811966]
[1741611153123,6.1602,129.41,129.35,0.05811966]
[1741611153425,7.7286,129.38,129.35,0.05811966]
[1741611153720,6.1602,129.41,129.35,0.05811966]
[1741611154721,7.7291,129.37,129.35,0.05811966]
[1741611154922,6.1602,129.41,129.35,0.05811966]
[1741611155321,7.7284,129.38,129.35,0.05811966]
[1741611155926,6.1602,129.41,129.35,0.05811966]
[1741611157120,7.728,129.39,129.35,0.05811966]
[1741611157320,6.1602,129.41,129.35,0.05811966]
[1741611157922,13.8869,129.41,129.35,7.78781966]
[1741611158326,7.7276,129.39,129.35,0.05811966]
[1741611159121,6.1602,129.41,129.35,0.05811966]
[1741611159317,6.1602,129.41,129.35,62.05811966]
[1741611159627,7.7273,129.4,129.35,69.78781966]
[1741611160625,7.7268,129.41,129.36,7.7293]
[1741611161025,7.7268,129.41,129.37,0.05595455]
[1741611161329,7.7271,129.4,129.37,0.05595455]
[1741611161627,6.1525,129.44,129.38,7.7278]
[1741611161828,7.7255,129.43,129.36,33.01183699]
[1741611162029,6.1525,129.44,129.4,0.05749769]
[1741611162418,4.1225,129.44,129.4,0.05749769]
[1741611162929,7.7253,129.43,129.4,0.05749769]
[1741611163528,7.7259,129.42,129.4,0.05749769]
[1741611164027,2.0712,129.47,129.4,0.05749769]
[1741611164228,7.7259,129.42,129.4,0.05749769]
[1741611164529,2.0712,129.47,129.4,0.05749769]
[1741611164724,7.7264,129.41,129.4,0.05749769]
[1741611164923,31.00653699,129.41,129.31,2.0013]
[1741611165123,4.1216,129.4,129.31,2.0013]
[1741611165323,7.7303,129.35,129.31,2.0013]
[1741611165526,4.1216,129.4,129.31,2.0013]
[1741611165729,7.731,129.34,129.31,2.0013]
[1741611166027,0.05686373,129.34,129.31,2.05788854]
[1741611166226,0.05686373,129.34,129.33,7.7308]
[1741611166620,0.05686373,129.34,129.31,2.05788854]
[1741611166819,0.05686373,129.34,129.32,7.7318]
[1741611167634,0.05686373,129.34,129.31,2.05788854]
[1741611167635,0.05686373,129.34,129.31,0.05658854]
[1741611168628,0.05686373,129.34,129.31,7.78858854]
[1741611169033,0.05686373,129.34,129.31,0.05658854]
[1741611169236,7.78776373,129.34,129.31,0.05658854]
[1741611169532,0.05686373,129.34,129.31,0.05658854]
[1741611171535,7.7313,129.33,129.27,31.00653699]
[1741611171732,2.0312,129.38,129.27,31.00653699]
[1741611171924,2.0312,129.38,129.25,2.1201]
[1741611172127,7.7334,129.3,129.26,62.0]
[1741611172327,31.00653699,129.36,129.28,7.7338]
[1741611172632,7.7323,129.32,129.31,0.05894977]
[1741611174038,0.05530374,129.33,129.31,0.05894977]
[1741611174832,0.05530374,129.33,129.31,7.79134977]
[1741611175033,0.05530374,129.33,129.31,0.05894977]
[1741611175333,7.7288,129.37,129.31,0.05894977]
[1741611175637,2.0312,129.38,129.31,0.05894977]
[1741611175838,7.7296,129.36,129.31,0.05894977]
[1741611176241,2.0312,129.38,129.31,0.05894977]
[1741611176443,0.05408491,129.35,129.31,0.05894977]
[1741611176641,0.05408491,129.35,129.32,7.7315]
[1741611177843,0.05408491,129.35,129.31,0.05894977]
[1741611180244,7.7307,129.34,129.31,0.05894977]
[1741611180545,0.05408491,129.35,129.31,0.05894977]
[1741611180743,7.7318,129.32,129.31,0.05894977]
[1741611181045,3.9241,129.34,129.31,0.05894977]
[1741611181643,0.05408491,129.35,129.31,0.05894977]
[1741611181842,7.78448491,129.35,129.31,7.79094977]
[1741611182042,0.05408491,129.35,129.31,7.79094977]
[1741611182743,0.05408491,129.35,129.31,0.05894977]
[1741611182945,0.05408491,129.35,129.32,7.7314]
[1741611183248,7.78438491,129.35,129.31,0.05894977]
[1741611183445,7.78438491,129.35,129.32,7.7314]
[1741611184046,0.05408491,129.35,129.34,7.7306]
[1741611186848,0.05408491,129.35,129.31,2.13324977]
[1741611187047,0.05408491,129.35,129.34,7.7306]
[1741611190853,0.05408491,129.35,129.33,7.731]
[1741611191351,7.78438491,129.35,129.32,7.7315]
[1741611191746,0.05408491,129.35,129.31,0.05894977]
[1741611191950,7.7318,129.32,129.31,0.05894977]
[1741611192155,0.05408491,129.35,129.31,0.05894977]
[1741611192346,7.7313,129.33,129.31,7.79094977]
[1741611192547,7.7313,129.33,129.31,0.05894977]
[1741611192953,0.05408491,129.35,129.31,0.05894977]
[1741611194452,0.05408491,129.35,129.34,7.7306]
[1741611196753,0.05408491,129.35,129.33,7.7309]
[1741611196958,0.05408491,129.35,129.31,4.24574977]
[1741611197159,0.05408491,129.35,129.31,0.05894977]
[1741611198355,0.05408491,129.35,129.34,7.7306]
[1741611200253,0.05408491,129.35,129.33,7.7309]
[1741611200763,0.05408491,129.35,129.31,7.79104977]
[1741611201155,0.05408491,129.35,129.31,0.05894977]
[1741611201354,0.05408491,129.35,129.32,7.7315]
[1741611201658,0.05408491,129.35,129.31,0.05894977]
[1741611202055,0.05408491,129.35,129.34,7.7306]
[1741611203763,0.05408491,129.35,129.33,7.7309]
[1741611203958,0.05408491,129.35,129.31,0.05894977]
[1741611204159,7.78438491,129.35,129.31,0.05894977]
[1741611204356,0.05408491,129.35,129.32,7.7315]
[1741611204663,7.7307,129.34,129.31,0.05894977]
[1741611204857,0.05408491,129.35,129.31,0.05894977]
[1741611205862,7.731,129.34,129.32,7.7314]
[1741611206270,7.731,129.34,129.31,0.05894977]
[1741611206466,7.78448491,129.35,129.31,0.05894977]
[1741611206668,0.05408491,129.35,129.31,0.05894977]
[1741611207058,0.05408491,129.35,129.31,7.79094977]
[1741611207268,0.05408491,129.35,129.31,0.05894977]
[1741611207566,7.7315,129.33,129.31,7.79124977]
[1741611208654,0.05408491,129.35,129.31,0.05894977]
[1741611208860,7.7318,129.32,129.31,0.05894977]
[1741611209260,7.7315,129.33,129.31,7.79124977]
[1741611209868,7.731,129.34,129.32,7.7318]
[1741611210068,0.05408491,129.35,129.31,0.05894977]
[1741611210368,0.05408491,129.35,129.31,7.79104977]
[1741611210369,7.7312,129.33,129.31,7.79104977]
[1741611210974,7.7309,129.34,129.32,7.7318]
[1741611211272,0.05408491,129.35,129.31,0.05894977]
[1741611212267,0.05408491,129.35,129.31,19.41744552]
[1741611212467,0.05408491,129.35,129.34,7.7306]
[1741611212770,0.05408491,129.35,129.31,19.41744552]
[1741611213566,7.78438491,129.35,129.33,7.7311]
[1741611214968,0.05408491,129.35,129.34,7.7306]
[1741611215272,0.05408491,129.35,129.31,19.41744552]
[1741611215474,0.05408491,129.35,129.32,7.7313]
[1741611215671,0.05408491,129.35,129.31,0.05894977]
[1741611216171,0.05408491,129.35,129.32,7.7317]
[1741611216778,0.05408491,129.35,129.31,7.79104977]
[1741611216979,0.05408491,129.35,129.31,0.05894977]